Workbook

Sheet 政府性基金收入调整
A1: 附表一
A2: 2023年区级政府性基金收入调整草案表
F3: 单位：万元
A4: 项 目 | B4: 2023年预算数 | D4: 2023年调整数
B5: 金额 | C5: 占本年收入合计% | D5: 调整金额 | E5: 调整后预算数 | F5: 占本年收入合计%
A6: 一、国有土地使用权出让收入
A7: 二、国有土地收益基金收入
A8: 三、农业土地开发资金收入
A9: 四、城市基础设施配套费收入
A10: 五、彩票公益金收入
A11: 六、污水处理费收入
A12: 七、其他政府性基金收入
A13: 八、专项债务对应项目专项收入
A14: 本年收入合计
A15: 债务转贷收入 | B15: =B16 -> 28,200 | D15: =E15-B15 -> 37,800 | E15: =E16 -> 66,000
A16: 地方政府专项债券转贷收入 | B16: 28,200 | D16: =E16-B16 -> 37,800 | E16: =28200+24200+13600 -> 66,000
A17: 转移性收入 | B17: =SUM(B18:B20) -> 476,992 | D17: =E17-B17 -> -371,497 | E17: =SUM(E18:E20) -> 105,495
A18: 上级补助收入 | B18: 445,476 | D18: =E18-B18 -> -376,379 | E18: 69,097
A19: 调入资金 | B19: 9,467 | D19: =E19-B19 -> 2,637 | E19: =12054+50 -> 12,104
A20: 上年结转收入 | B20: 22,049 | D20: 2,244 | E20: 24,293
A21: 收入总计 | B21: =B15+B17 -> 505,192 | D21: -333,697 | E21: =E17+E15 -> 171,495

Sheet 政府性基金支出调整
A1: 附表二
A2: 2023年区级政府性基金支出调整草案表
F3: 单位：万元
A4: 项 目 | B4: 2023年预算数 | D4: 2023年预算调整数
B5: 金额 | C5: 占本年支出合计% | D5: 调整金额 | E5: 调整后预算数 | F5: 占本年支出合计%
A6: 一、文化旅游体育与传媒支出 | C6: =B6/610725*100 -> 0.00 | D6: =E6-B6 -> 60 | E6: 60 | F6: =E6/138245*100 -> 0.04
A7: 二、社会保障和就业支出 | F7: =E7/138245*100 -> 0.00
A8: 三、城乡社区支出 | B8: 465,176 | C8: =B8/610725*100 -> 76.17 | D8: =E8-B8 -> -377,452 | E8: 87,724 | F8: 63.46
A9: 四、农林水支出 | F9: 0.00
A10: 五、交通运输支出 | F10: 0.00
A11: 六、资源勘探信息支出 | F11: 0.00
A12: 七、金融支出 | F12: 0.00
A13: 八、其他支出 | B13: 406 | C13: =B13/610725*100 -> 0.07 | D13: =E13-B13 -> 38,001 | E13: =E14+E15 -> 38,407 | F13: 27.78
A14: 其中：彩票公益金安排支出 | B14: 406 | D14: =E14-B14 -> 201 | E14: 607 | F14: 0.44
A15: 其他地方自行试点项目收益专项债券收入安排的支出 | B15: 0 | D15: =E15-B15 -> 37,800 | E15: 37,800 | F15: 27.34
A16: 九、债务付息支出 | B16: 11,410 | C16: =B16/610725*100 -> 1.87 | D16: =E16-B16 -> 644 | E16: 12,054 | F16: 8.72
A17: 十、抗疫特别国债的支出 | F17: 0.00
A18: 本年支出合计 | B18: =SUM(B6:B13,B16,B17) -> 476,992 | C18: =B18/610725*100 -> 78.10 | D18: =E18-B18 -> -338,747 | E18: =E6+E8+E13+E16 -> 138,245 | F18: 100.00
A19: 债务还本支出 | B19: =B20 -> 28,200 | D19: =E19-B19 -> 0 | E19: =E20 -> 28,200
A20: 地方政府其他专项债务还本支出 | B20: 28,200 | D20: =E20-B20 -> 0 | E20: 28,200
A21: 转移性支出 | D21: =E21-B21 -> 5,050 | E21: =SUM(E22:E24) -> 5,050
A22: 上解上级支出 | D22: =E22-B22 -> 50 | E22: 50
A23: 调出资金
A24: 结转下年支出 | D24: =E24-B24 -> 5,000 | E24: 5,000
A25: 支出总计 | B25: =B18+B19+B21 -> 505,192 | D25: =D18+D19+D21 -> -333,697 | E25: =E18+E19+E21 -> 171,495

Sheet 国有资本收入预算调整
A1: 附表三
A2: 2023年区国有资本经营预算收入调整草案表
D3: 单位：万元
A4: 项目 | B4: 2023年预算数 | C4: 2023年预算调整数
C5: 调整金额 | D5: 调整后预算数
A6: 一、利润收入 | C6: =D6-B6 -> 0
A7: 建筑施工企业利润收入 | C7: =D7-B7 -> 0
A8: 二、股利股息收入 | B8: 300 | C8: 252 | D8: 552
A9: 三、产权转让收入 | C9: 0
A10: 四、清算收入 | C10: 0
A11: 五、其他国有资本经营预算收入 | C11: 0
A12: 本年收入合计 | B12: 300 | C12: 252 | D12: 552
A13: 上级补助收入 | B13: 254 | C13: 67 | D13: 321
A14: 上年结转收入 | B14: 302 | C14: 0 | D14: 302
A15: 收入总计 | B15: 856 | C15: 319 | D15: 1175

Sheet 国有资本支出预算调整
A1: 附表四
A2: 2023年区国有资本经营预算支出调整草案表
D3: 单位：万元
A4: 项目 | B4: 2023年预算数 | C4: 2023年预算调整数
C5: 调整金额 | D5: 调整后预算数
A6: 一、社会保障和就业支出
A7: 二、国有资本经营预算支出 | B7: 766 | C7: =D7-B7 -> -445 | D7: 321
A8: 解决历史遗留问题及改革支出 | B8: 556 | C8: -235 | D8: 321
A9: 国有企业退休人员社会化管理补助支出 | B9: 556 | C9: -235 | D9: 321
A10: 其他国有资本经营预算支出 | B10: 210 | C10: -210
A11: 其他国有资本经营预算支出 | B11: 210 | C11: -210
A12: 本年支出合计 | B12: 766 | C12: -445 | D12: 321
A13: 调出资金 | B13: 90 | C13: 76 | D13: 166
A14: 结转下年支出 | C14: 688 | D14: 688
A15: 支出总计 | B15: 856 | C15: 319 | D15: 1,175

Sheet 2023社保基金收入调整
A1: 附表五
A2: 2023年区社会保险基金预算收入调整草案表
A3: 单位：万元
A4: 项目 | B4: 2023年预算数 | C4: 2023年预算调整数
C5: 调整金额 | D5: 调整后预算数
A6: 一、城乡居民基本养老保险基金收入 | B6: =B7+B8+B9 -> 10,549 | C6: 200 | D6: =C6+B6 -> 10,749
A7: 其中：保险费收入 | B7: 1,199 | C7: 200 | D7: 1,399
A8: 财政补贴收入 | B8: 6,658 | D8: 6,658
A9: 其他收入 | B9: 2,692 | D9: 2,692
A10: 二、机关事业单位养老保险基金收入 | B10: =B11+B12+B13 -> 44,343 | C10: -3,000 | D10: 41,343
A11: 其中：保险费收入 | B11: 23,124 | C11: 2,000 | D11: 25,124
A12: 财政补贴收入 | B12: 20,000 | C12: -5,000 | D12: 15,000
A13: 其他收入 | B13: 1,219 | D13: 1,219
A14: 社会保险基金收入合计 | B14: =B6+B10 -> 54,892 | C14: =C10+C6 -> -2,800 | D14: 52,092
A15: 其中：保险费收入 | B15: 24,323 | C15: =C7+C11 -> 2,200 | D15: 26,523
A16: 财政补贴收入 | B16: 26,658 | C16: =C8+C12 -> -5,000 | D16: 21,658
A17: 其他收入 | B17: 3,911 | D17: 3,911

Sheet 2023社保基金支出调整
A1: 附表六
A2: 2023年区社会保险基金预算支出调整草案表
A3: 单位：万元
A4: 项目 | B4: 2023年预算数 | C4: 2023年预算调整数
C5: 调整金额 | D5: 调整后预算数
A6: 一、城乡居民基本养老保险基金支出 | B6: 9,878 | C6: 710 | D6: =B6+C6 -> 10,588
A7: 其中：基本养老保险待遇金支出 | B7: 9,853 | C7: 710 | D7: 10,563
A8: 其他支出 | B8: 25 | C8: 0 | D8: 25
A9: 二、机关事业单位养老保险基金支出 | B9: 43,131 | D9: 43,131
A10: 其中：基本养老保险待遇金支出 | B10: 43,095 | D10: 43,095
A11: 其他支出 | B11: 36 | D11: 36
A12: 社会保险基金支出合计 | B12: 53,009 | C12: =C6+C9 -> 710 | D12: 53,719
A13: 其中：社会保险待遇金支出 | B13: 52,949 | C13: 710 | D13: 53,659
A14: 其他支出 | B14: 60 | C14: 0 | D14: 60

Sheet 2023社保基金结余
A1: 附表七
A2: 2023年区社会保险基金预算结余调整草案表
D3: 单位：万元
A4: 项目 | B4: 2023年预算数 | C4: 2023年预算调整数
C5: 调整金额 | D5: 调整后预算数
A6: 一、社会保险基金本年收支结余合计 | B6: 1,883 | C6: =D6-B6 -> -3,510 | D6: -1,627
A7: （一）城乡居民基本养老保险基金 | B7: 671 | C7: -510 | D7: 161
A8: （二）机关事业单位养老保险基金 | B8: 1,212 | C8: -3,000 | D8: -1,788
A9: 二、社会保险基金年末滚存结余合计 | B9: 86,832 | C9: -4,205 | D9: 82,627
A10: （一）城乡居民基本养老保险基金 | B10: 79,469 | C10: -1,445 | D10: 78,024
A11: （二）机关事业单位养老保险基金 | B11: 7,363 | C11: -2,760 | D11: 4,603
